bitfinex/quotes_BTCUSD_20250328
["timestamp","ask_amount","ask_price","bid_price","bid_amount"]
[1743172032787,1.11543953,84474.0,84473.0,0.0001335]
[1743172033832,1.00118189,84474.0,84473.0,0.0001335]
[1743172034391,1.11543953,84474.0,84473.0,0.0001335]
[1743172034610,1.40223802,84474.0,84473.0,5e-07]
[1743172034810,0.248661,84452.0,84451.0,0.0001691]
[1743172034965,0.248661,84452.0,84451.0,0.00030247]
[1743172035165,0.00590598,84452.0,84451.0,0.00030247]
[1743172035481,0.55825738,84452.0,84451.0,4.7e-07]
[1743172035682,0.55540462,84452.0,84451.0,4.7e-07]
[1743172036122,0.55540462,84452.0,84451.0,0.00200047]
[1743172036317,0.57944542,84452.0,84451.0,0.00200047]
[1743172036893,0.57944542,84452.0,84451.0,0.00400047]
[1743172037094,0.46518778,84452.0,84451.0,0.00400047]
[1743172037355,0.38988778,84452.0,84451.0,0.00400047]
[1743172037562,0.02994678,84452.0,84451.0,4.7e-07]
[1743172038244,0.04178778,84452.0,84451.0,4.7e-07]
[1743172038598,0.02994678,84452.0,84451.0,4.7e-07]
[1743172038990,0.02994678,84452.0,84451.0,0.01184147]
[1743172039193,0.02994678,84452.0,84451.0,0.12609911]
[1743172039194,0.0240408,84452.0,84451.0,0.12609911]
[1743172039953,0.2608608,84452.0,84451.0,4.7e-07]
[1743172040098,0.0240408,84452.0,84451.0,0.00016967]
[1743172040325,0.0297661,84452.0,84451.0,0.00016967]
[1743172040737,0.2784271,84452.0,84451.0,0.00216967]
[1743172041568,0.0297661,84452.0,84451.0,0.00216967]
[1743172041779,0.0416071,84452.0,84451.0,0.00216967]
[1743172041978,0.3416071,84452.0,84451.0,0.00216967]
[1743172042615,0.0297661,84452.0,84451.0,0.00216967]
[1743172043678,0.0240408,84452.0,84451.0,0.01401067]
[1743172043852,0.4760823,84474.0,84451.0,0.01401067]
[1743172043853,0.011839,84466.0,84454.0,0.01184]
[1743172044100,0.4644,84474.0,84462.0,0.011839]
[1743172044101,0.236762,84473.0,84462.0,0.011839]
[1743172044278,0.236762,84473.0,84455.0,0.11425764]
[1743172044279,0.01757053,84472.0,84458.0,0.236801]
[1743172044474,0.236782,84466.0,84460.0,0.236798]
[1743172044712,0.548661,84452.0,84451.0,0.00216967]
[1743172044911,0.30573253,84452.0,84451.0,0.00216967]
[1743172045112,0.00573253,84452.0,84451.0,0.00216967]
[1743172045332,0.011841,84452.0,84451.0,0.00216967]
[1743172045568,0.01762207,84452.0,84451.0,0.00216967]
[1743172045767,0.01762207,84452.0,84451.0,0.00016967]
[1743172045917,0.00578107,84452.0,84451.0,0.00016967]
[1743172046118,0.248661,84452.0,84451.0,0.00016967]
[1743172046318,0.25444207,84452.0,84451.0,0.00016967]
[1743172046697,0.25444207,84452.0,84451.0,0.00116967]
[1743172047129,0.25444207,84452.0,84451.0,0.0121951]
[1743172047918,0.00578107,84452.0,84451.0,0.0121951]
[1743172048119,0.011838,84469.0,84459.0,0.01184]
[1743172048325,0.011838,84469.0,84459.0,0.236801]
[1743172048326,0.02349182,84460.0,84459.0,0.236801]
[1743172048527,0.02349182,84460.0,84459.0,0.248641]
[1743172048735,0.286431,84485.0,84470.0,0.011838]
[1743172048907,0.4177,84488.0,84478.0,0.236747]
[1743172048908,0.00548417,84480.0,84478.0,0.236747]
[1743172049109,0.248567,84484.0,84475.0,0.011837]
[1743172049309,0.011837,84479.0,84471.0,0.11425764]
[1743172049511,0.248576,84481.0,84473.0,0.011838]
[1743172049753,0.00548417,84478.0,84471.0,0.11425764]
[1743172049997,0.011839,84464.0,84455.0,0.02392834]
[1743172050106,0.011838,84470.0,84454.0,0.01184]
[1743172050107,0.236784,84465.0,84458.0,0.236803]
[1743172050313,0.00566913,84463.0,84458.0,0.35106064]
[1743172050754,0.001,84460.0,84459.0,0.236801]
[1743172050959,0.011839,84465.0,84454.0,0.248652]
[1743172051160,0.00566913,84460.0,84459.0,0.236801]
[1743172051360,0.236784,84465.0,84459.0,0.236799]
[1743172051561,0.00566913,84460.0,84456.0,0.236808]
[1743172051924,0.00566913,84459.0,84458.0,0.248644]
[1743172052141,0.02319289,84460.0,84459.0,0.236801]
[1743172052472,0.02886202,84460.0,84458.0,0.248644]
[1743172052685,0.02886202,84460.0,84459.0,0.236801]
[1743172052887,0.02319289,84460.0,84459.0,0.248641]
[1743172053346,0.251359,84459.0,84458.0,0.248644]
[1743172053810,0.25700152,84459.0,84458.0,0.248644]
[1743172054160,0.25700152,84459.0,84457.0,0.236806]
[1743172054380,0.25700152,84459.0,84457.0,0.11425764]
[1743172054828,0.25700152,84459.0,84458.0,0.001]
[1743172055031,0.248661,84452.0,84451.0,0.00030262]
[1743172055208,0.236815,84454.0,84451.0,0.00030262]
[1743172055478,0.23682,84452.0,84451.0,0.00030262]
[1743172055652,0.236818,84453.0,84451.0,0.00030262]
[1743172055653,0.00563993,84453.0,84452.0,0.23682]
[1743172055854,0.236804,84458.0,84457.0,0.001]
[1743172056057,0.248644,84458.0,84457.0,0.001]
[1743172056211,0.249661,84452.0,84451.0,0.00030262]
[1743172056776,0.25430093,84452.0,84451.0,0.00030262]
[1743172057394,0.63120093,84452.0,84451.0,0.00030262]
[1743172057602,1.20845857,84452.0,84451.0,0.00030262]
[1743172058131,1.22326674,84452.0,84451.0,0.00030262]
[1743172058333,1.22326674,84452.0,84451.0,6.2e-07]
[1743172058334,1.27164574,84452.0,84451.0,6.2e-07]
[1743172058534,1.27164574,84452.0,84428.0,0.0001691]
[1743172058535,0.248729,84429.0,84428.0,0.0001691]
[1743172058780,0.00556297,84429.0,84428.0,0.00061345]
[1743172059339,0.02963187,84429.0,84428.0,0.00061345]
[1743172059960,0.04147587,84429.0,84428.0,0.00061345]
[1743172060161,0.04632863,84429.0,84428.0,0.00061345]
[1743172060427,0.04347587,84429.0,84428.0,0.00061345]
[1743172060990,0.04632863,84429.0,84428.0,0.00061345]
[1743172061346,0.04347587,84429.0,84428.0,0.00061345]
[1743172061891,0.04547587,84429.0,84428.0,0.00061345]
[1743172062681,0.03363187,84429.0,84428.0,0.00061345]
[1743172062931,0.03363187,84429.0,84428.0,0.24934545]
[1743172063179,0.03363187,84429.0,84428.0,0.00061345]
[1743172064138,0.03363187,84429.0,84428.0,0.01245745]
[1743172064139,0.00956297,84429.0,84428.0,0.01245745]
[1743172064350,0.02811883,84429.0,84428.0,0.12671509]
[1743172064554,0.004,84429.0,84428.0,0.12671509]
[1743172064752,0.004,84429.0,84428.0,0.6454507]
[1743172064961,0.004,84429.0,84428.0,0.64308209]
[1743172065160,0.0003384,84460.0,84458.0,0.01184]
[1743172065362,0.0003384,84460.0,84454.0,0.236814]
[1743172065623,0.25673495,84459.0,84455.0,0.236812]
[1743172065903,0.49353595,84459.0,84453.0,0.01184]
[1743172066059,0.51703525,84459.0,84453.0,0.01184]
[1743172066262,0.51703525,84459.0,84454.0,0.236814]
[1743172066457,0.52203525,84459.0,84454.0,0.236814]
[1743172066681,0.236804,84458.0,84453.0,0.248657]
[1743172067007,0.00539691,84457.0,84451.0,0.236822]
[1743172067209,0.00539691,84457.0,84456.0,0.248649]
[1743172067592,0.2798583,84459.0,84456.0,0.01184]
[1743172067767,0.2758583,84459.0,84454.0,0.236812]
[1743172067977,0.00539691,84458.0,84456.0,0.236808]
[1743172068171,0.24220191,84458.0,84453.0,0.01184]
[1743172068397,0.001,84457.0,84453.0,0.236817]
[1743172068917,0.00539691,84456.0,84451.0,0.248663]
[1743172069119,0.00539691,84456.0,84455.0,0.236812]
[1743172069345,0.00539691,84456.0,84451.0,0.248663]
[1743172069505,0.01184,84454.0,84447.0,0.248673]
[1743172069700,0.0054634,84453.0,84450.0,0.011841]
[1743172069904,0.236813,84455.0,84450.0,0.248665]
[1743172070103,0.0054634,84454.0,84453.0,0.236818]
[1743172070308,0.2768583,84459.0,84453.0,0.01184]
[1743172070554,0.0054634,84458.0,84454.0,0.236815]
[1743172070771,0.2422684,84458.0,84453.0,0.236817]
[1743172071141,0.2541084,84458.0,84451.0,0.248663]
[1743172071344,0.2541084,84458.0,84442.0,0.236848]
[1743172071345,0.236812,84455.0,84442.0,0.236848]
[1743172071545,0.011841,84449.0,84438.0,0.011843]
[1743172071808,0.23896402,84452.0,84438.0,0.011843]
[1743172071809,0.0054634,84448.0,84445.0,0.236839]
[1743172072029,0.0054634,84448.0,84447.0,0.236834]
[1743172072209,0.236833,84448.0,84441.0,0.011842]
[1743172072419,0.236854,84440.0,84432.0,0.011843]
[1743172072643,0.00544764,84447.0,84439.0,0.011842]
[1743172072846,0.236823,84451.0,84444.0,0.248684]
[1743172073046,0.22746142,84460.0,84438.0,0.001]
[1743172073047,0.236857,84439.0,84438.0,0.001]
[1743172073229,0.248699,84439.0,84438.0,0.001]
[1743172073427,0.25412679,84439.0,84438.0,0.001]
[1743172074028,0.25412679,84439.0,84428.0,0.0120131]
[1743172074029,0.25412679,84439.0,84433.0,0.236872]
[1743172074245,0.236879,84431.0,84428.0,0.0001691]
[1743172074385,0.248722,84431.0,84428.0,0.0001691]
[1743172074568,0.25416215,84431.0,84428.0,0.0001691]
[1743172074767,0.26600734,84431.0,84428.0,0.0001691]
[1743172075294,0.25416215,84431.0,84428.0,0.0001691]
[1743172076121,0.25716215,84431.0,84428.0,0.0001691]
[1743172076385,0.25716215,84431.0,84429.0,0.0001693]
[1743172077776,0.25916215,84431.0,84429.0,0.0001693]
[1743172078538,0.01044015,84431.0,84429.0,0.0001693]
[1743172078711,0.01044015,84431.0,84430.0,0.24917035]
[1743172079096,0.01044015,84431.0,84430.0,0.00044435]
[1743172079294,0.005,84431.0,84430.0,0.00044435]
[1743172079553,0.24728342,84431.0,84430.0,0.00044435]
[1743172079966,0.01040442,84431.0,84430.0,0.00044435]
[1743172080160,0.24728342,84431.0,84430.0,0.00044435]
[1743172080368,0.01040442,84431.0,84430.0,0.00044435]
[1743172080561,0.25912642,84431.0,84430.0,0.00044435]
[1743172084960,0.63596696,84431.0,84430.0,0.00044435]
[1743172085159,0.7502246,84431.0,84430.0,0.00044435]
[1743172086549,0.67138406,84431.0,84430.0,0.00044435]
[1743172086753,0.67638406,84431.0,84430.0,0.00044435]
[1743172087201,0.67338406,84431.0,84430.0,0.00044435]
[1743172087788,0.67838406,84431.0,84430.0,0.00044435]
[1743172088110,0.67338406,84431.0,84430.0,0.00044435]
[1743172088296,0.67838406,84431.0,84430.0,0.00044435]
[1743172090207,0.67872266,84431.0,84430.0,0.00044435]
[1743172090415,0.43344302,84431.0,84430.0,0.00044435]
[1743172090824,0.01574302,84431.0,84430.0,0.24917035]
[1743172091441,0.0053386,84431.0,84430.0,0.24917035]
[1743172091609,0.0053386,84431.0,84430.0,0.54617399]
[1743172091982,0.0093386,84431.0,84430.0,0.54617399]
[1743172092755,0.0043386,84431.0,84430.0,0.24917035]
[1743172092957,0.2412176,84431.0,84430.0,0.00044435]
[1743172093157,0.01272737,84431.0,84430.0,0.00044435]
[1743172093341,0.25444937,84431.0,84430.0,0.00044435]
[1743172093539,0.39652055,84431.0,84430.0,0.00044435]
[1743172093738,0.36870701,84431.0,84430.0,0.00244435]
[1743172094066,0.25444937,84431.0,84430.0,0.00044435]
[1743172094239,0.24260637,84431.0,84430.0,0.00044435]
[1743172094460,0.00572737,84431.0,84430.0,0.23732635]
[1743172094657,0.00572737,84431.0,84430.0,0.00044435]
[1743172094859,0.8527853,84431.0,84430.0,0.00044435]
[1743172095098,1.08640701,84431.0,84430.0,0.00044435]
[1743172095632,1.10094786,84431.0,84430.0,0.00044435]
[1743172095780,1.18164786,84431.0,84430.0,0.00044435]
[1743172096000,1.18464786,84431.0,84430.0,0.00044435]
[1743172096447,1.18164786,84431.0,84430.0,0.00044435]
[1743172096823,1.17110701,84431.0,84430.0,0.00044435]
[1743172097024,1.05684937,84431.0,84430.0,0.00044435]
[1743172097227,1.05884937,84431.0,84430.0,0.00044435]
[1743172097631,1.05684937,84431.0,84430.0,0.00044435]
[1743172097992,1.06084937,84431.0,84430.0,0.00044435]
[1743172098192,1.17510701,84431.0,84430.0,0.00044435]
[1743172098403,1.25852708,84431.0,84430.0,0.00044435]
[1743172098641,1.17510701,84431.0,84430.0,0.00044435]
[1743172100115,1.17510701,84431.0,84428.0,7.5e-07]
[1743172100311,1.17510701,84431.0,84422.0,0.04996159]
[1743172100312,0.56328785,84423.0,84422.0,0.04884119]
[1743172100718,0.68285129,84423.0,84422.0,0.04884119]
[1743172101127,1.10055129,84423.0,84422.0,0.04884119]
[1743172102088,1.10055129,84423.0,84422.0,0.04784119]
[1743172103125,1.10555129,84423.0,84422.0,0.04784119]
[1743172104019,1.13442451,84423.0,84422.0,0.04784119]
[1743172104201,1.24868215,84423.0,84422.0,0.04784119]
[1743172104398,1.13442451,84423.0,84422.0,0.04784119]
[1743172104719,1.13442451,84423.0,84422.0,0.0041266]
[1743172108656,1.11988366,84423.0,84422.0,0.0041266]
[1743172111331,1.13442451,84423.0,84422.0,6e-07]
[1743172113065,1.11988366,84423.0,84422.0,6e-07]
[1743172113272,1.11988366,84423.0,84422.0,0.0001695]
[1743172114107,1.00562602,84423.0,84422.0,0.0001695]
[1743172114899,0.45687902,84423.0,84422.0,0.0001695]
[1743172115094,0.03917902,84423.0,84422.0,0.2489195]
[1743172115293,0.02887322,84423.0,84422.0,0.2489195]
[1743172115798,0.03912348,84423.0,84422.0,0.2489195]
[1743172116036,0.02387322,84423.0,84422.0,0.0001695]
[1743172116239,0.27562022,84423.0,84422.0,0.0001695]
[1743172116485,0.27762022,84423.0,84422.0,0.0001695]
[1743172116718,0.02887322,84423.0,84422.0,0.2370745]
[1743172116953,0.03112348,84423.0,84422.0,0.2489195]
[1743172117170,0.02587322,84423.0,84422.0,0.2489195]
[1743172117387,0.02787322,84423.0,84422.0,0.2489195]
[1743172117926,0.02787322,84423.0,84422.0,0.0001695]
[1743172118129,0.26477522,84423.0,84422.0,0.0001695]
[1743172118386,0.03315039,84423.0,84422.0,0.0001695]
[1743172118606,0.004,84423.0,84422.0,0.44047714]
[1743172118734,1e-06,84423.0,84422.0,0.74047714]
[1743172118934,1e-06,84423.0,84422.0,4.60522599]
[1743172119136,0.00078186,84431.0,84430.0,0.548726]
[1743172119340,0.00078186,84431.0,84430.0,3.36762364]
[1743172119552,0.251359,84459.0,84457.0,0.248646]
[1743172119752,0.00566375,84458.0,84457.0,0.86801364]
[1743172120193,0.0003386,84458.0,84457.0,0.86801364]
[1743172120711,0.0003386,84458.0,84457.0,0.36290364]
[1743172121007,0.0013386,84458.0,84457.0,0.36290364]
[1743172121967,0.0013386,84458.0,84457.0,1.64085664]
[1743172122169,0.0013386,84458.0,84457.0,1.64385664]
[1743172122409,0.0003386,84458.0,84457.0,1.94385664]
[1743172122637,0.0003386,84458.0,84457.0,1.94085664]
[1743172122934,9.3e-07,84469.0,84468.0,0.56315485]
[1743172123116,9.3e-07,84469.0,84468.0,0.77881249]
[1743172123320,0.0003384,84489.0,84483.0,0.24857]
[1743172123544,0.00047145,84484.0,84483.0,2.74591764]
[1743172123745,0.00047145,84484.0,84483.0,4.21303564]
[1743172123954,0.0003384,84489.0,84488.0,0.248556]
[1743172124149,0.0003384,84489.0,84488.0,2.32744464]
[1743172124448,0.0003384,84489.0,84488.0,0.67952164]
[1743172124643,0.0003384,84489.0,84488.0,0.11425764]
[1743172125048,0.0003384,84489.0,84488.0,0.12609364]
[1743172125325,0.00608832,84489.0,84488.0,0.12609364]
[1743172125544,0.0003384,84489.0,84488.0,0.12609364]
[1743172125747,0.0003384,84489.0,84488.0,0.62429164]
[1743172125947,0.0003384,84489.0,84488.0,0.92529164]
[1743172126742,0.0003384,84489.0,84466.0,0.0751]
[1743172126743,0.011837,84480.0,84466.0,0.0751]
[1743172126943,0.011837,84480.0,84475.0,0.00013305]
[1743172127144,0.236753,84476.0,84475.0,0.00013305]
[1743172127362,0.25452232,84476.0,84475.0,0.00013305]
[1743172128228,0.36877996,84476.0,84475.0,0.00013305]
[1743172128436,0.25452232,84476.0,84475.0,0.00013305]
[1743172128680,0.02996567,84476.0,84475.0,0.01197005]
[1743172128839,0.00593232,84476.0,84475.0,0.01197005]
[1743172129038,0.011836,84486.0,84475.0,0.01197005]
[1743172129039,0.0003384,84489.0,84481.0,0.011836]
[1743172129245,0.0003384,84489.0,84475.0,0.00013305]
[1743172129246,0.236739,84481.0,84475.0,0.00013305]
[1743172129460,0.011837,84476.0,84475.0,0.00013305]
[1743172130209,0.02068502,84476.0,84475.0,0.00013305]
[1743172130392,0.01768502,84476.0,84475.0,0.00013305]
[1743172131459,0.00584802,84476.0,84475.0,0.00013305]
[1743172131872,0.011837,84480.0,84475.0,0.00013305]
[1743172132242,0.02404521,84482.0,84481.0,0.011836]
[1743172132354,0.00584802,84479.0,84476.0,0.236753]
[1743172132549,0.02404521,84482.0,84478.0,0.011837]
[1743172132887,0.00584802,84481.0,84480.0,0.248576]
[1743172133251,0.02404521,84482.0,84480.0,0.248576]
[1743172133479,0.00584802,84481.0,84480.0,0.248576]
[1743172133697,0.00584802,84481.0,84480.0,1.35750564]
[1743172133900,0.0003384,84489.0,84486.0,0.236723]
[1743172134213,0.0003384,84489.0,84488.0,0.248556]
[1743172135134,0.0003384,84489.0,84487.0,0.236722]
[1743172135559,0.0003384,84489.0,84487.0,0.248558]
[1743172135837,0.0003384,84489.0,84488.0,0.88474764]
[1743172136075,0.0003384,84489.0,84488.0,0.12609364]
[1743172136258,0.0023384,84489.0,84488.0,0.12609364]
[1743172136602,0.0013384,84489.0,84488.0,0.12609364]
[1743172137007,0.0023384,84489.0,84488.0,0.37964564]
[1743172137193,0.0013384,84489.0,84488.0,0.37964564]
[1743172138104,0.0023384,84489.0,84488.0,0.11425764]
[1743172138359,0.0023384,84489.0,84488.0,0.12609364]
[1743172138775,0.0013384,84489.0,84488.0,0.12609364]
[1743172139179,0.0013384,84489.0,84488.0,0.31006861]
[1743172139506,0.0013384,84489.0,84488.0,0.30770164]
[1743172139507,0.0003384,84489.0,84488.0,0.30770164]
[1743172140019,0.0003384,84489.0,84488.0,0.30870164]
[1743172140624,0.0003384,84489.0,84488.0,0.54542164]
[1743172141374,0.0003384,84489.0,84488.0,0.36581364]
[1743172141669,0.0003384,84489.0,84488.0,0.64078064]
[1743172141870,0.0003384,84489.0,84488.0,0.36581364]
[1743172143011,0.2488904,84489.0,84488.0,0.003]
[1743172143749,0.2488904,84489.0,84488.0,0.001]
[1743172143960,0.0003384,84489.0,84488.0,0.001]
[1743172144109,0.2380554,84489.0,84484.0,0.0001688]
[1743172144310,0.0023384,84489.0,84487.0,0.236721]
[1743172144509,0.2390554,84489.0,84485.0,0.011836]
[1743172144709,0.0023384,84489.0,84485.0,0.011836]
[1743172144935,0.0023384,84489.0,84488.0,0.23672]
[1743172145120,0.0023384,84489.0,84488.0,0.36281364]
[1743172145325,0.0023384,84489.0,84484.0,0.2368988]
[1743172145326,0.0013384,84489.0,84484.0,0.2368988]
[1743172145531,0.0003384,84489.0,84487.0,0.236721]
[1743172145756,0.0013384,84489.0,84488.0,0.248556]
[1743172145968,0.0023384,84489.0,84488.0,0.248556]
[1743172146143,0.0023384,84489.0,84488.0,0.23672]
[1743172146350,0.0013384,84489.0,84486.0,0.236723]
[1743172146671,0.0033384,84489.0,84486.0,0.236723]
[1743172146872,0.0013384,84489.0,84488.0,0.23672]
[1743172147074,0.0013384,84489.0,84488.0,0.248556]
[1743172147288,0.0013384,84489.0,84488.0,0.23672]
[1743172147495,0.0003384,84489.0,84487.0,0.236722]
[1743172147646,0.0003384,84489.0,84487.0,0.35097964]
[1743172147849,0.248556,84488.0,84484.0,0.0001688]
[1743172148053,0.248564,84485.0,84484.0,0.0001688]
[1743172148974,0.0013384,84489.0,84484.0,0.2487328]
[1743172149142,0.0003384,84489.0,84488.0,0.248556]
[1743172149344,0.0003384,84489.0,84488.0,2.39355464]
[1743172149621,0.0003384,84489.0,84488.0,1.949316]
[1743172149755,0.0003384,84489.0,84488.0,0.011836]
[1743172149954,0.0003384,84489.0,84488.0,0.248556]
[1743172150180,0.0013384,84489.0,84488.0,0.23672]
[1743172150423,0.0013384,84489.0,84484.0,0.0120048]
[1743172150424,0.236728,84485.0,84484.0,0.0001688]
[1743172150585,0.248564,84485.0,84484.0,0.0001688]
[1743172150785,0.36282164,84485.0,84484.0,0.0001688]
[1743172151583,0.248564,84485.0,84484.0,0.0001688]
[1743172152690,0.0003384,84489.0,84485.0,0.011836]
[1743172152880,0.0003384,84489.0,84484.0,0.0120048]
[1743172152881,0.0003384,84489.0,84484.0,0.0001688]
[1743172153092,0.241728,84485.0,84484.0,0.0001688]
[1743172153390,0.252564,84485.0,84484.0,0.0001688]
[1743172153603,0.41922164,84485.0,84484.0,0.0001688]
[1743172153788,1.02667928,84485.0,84484.0,0.0001688]
[1743172153990,0.91242164,84485.0,84484.0,0.0001688]
[1743172154348,1.21242164,84485.0,84484.0,0.0001688]
[1743172154548,0.79472164,84485.0,84484.0,0.0001688]
[1743172154973,0.79472164,84485.0,84450.0,0.011841]
[1743172154974,0.56313085,84476.0,84475.0,5e-08]
[1743172155184,0.74264764,84476.0,84475.0,5e-08]
[1743172155384,0.62839,84476.0,84475.0,5e-08]
[1743172156661,0.63639,84476.0,84475.0,5e-08]
[1743172157677,0.55659,84476.0,84475.0,5e-08]
[1743172159219,0.008,84476.0,84475.0,0.24859305]
[1743172159422,0.0003384,84489.0,84485.0,0.011836]
[1743172159622,0.0003384,84489.0,84488.0,0.248556]
[1743172161523,0.0003384,84489.0,84488.0,0.23672]
[1743172162076,0.0003384,84489.0,84488.0,0.249556]
[1743172162936,0.0003384,84489.0,84488.0,0.36481364]
[1743172163230,0.0003384,84489.0,84488.0,1.79665864]
[1743172163431,0.0003384,84489.0,84488.0,0.36481364]
[1743172164875,0.0003384,84489.0,84488.0,0.002]
[1743172165079,0.0003384,84489.0,84488.0,0.250556]
[1743172165320,0.0003384,84489.0,84488.0,0.36481364]
[1743172165834,0.0003384,84489.0,84488.0,0.250556]
[1743172167212,0.0003384,84489.0,84488.0,0.36481364]
[1743172167415,0.0003384,84489.0,84488.0,0.44441364]
[1743172167592,0.0003384,84489.0,84488.0,0.36481364]
[1743172168940,0.23669,84499.0,84492.0,0.011835]
[1743172169145,0.23669,84499.0,84495.0,0.236698]
[1743172169563,0.236692,84498.0,84493.0,0.011835]
[1743172169770,0.011834,84499.0,84493.0,0.011835]
[1743172170012,0.011834,84499.0,84494.0,0.011835]
[1743172170291,0.011834,84498.0,84489.0,0.00733221]
[1743172170498,0.011834,84498.0,84491.0,0.236711]
[1743172170712,0.236714,84490.0,84489.0,0.00733221]
[1743172170937,0.248549,84490.0,84489.0,0.00733221]
[1743172172089,0.248549,84490.0,84489.0,0.00833221]
[1743172172713,0.011835,84494.0,84489.0,0.00833221]
[1743172172714,0.0003376,84499.0,84489.0,0.00833221]
[1743172172915,0.236705,84494.0,84490.0,0.248546]
[1743172173099,0.236701,84495.0,84492.0,0.236706]
[1743172173301,0.236706,84493.0,84491.0,0.236711]
[1743172173526,0.236706,84493.0,84490.0,0.248549]
[1743172173963,0.236703,84494.0,84491.0,0.23671]
[1743172174394,0.249533,84496.0,84492.0,0.236707]
[1743172174586,0.248533,84496.0,84492.0,0.236707]
[1743172174792,0.236703,84494.0,84492.0,0.236707]
[1743172175109,0.5,84679.0,84495.0,0.011835]
[1743172175110,0.0003376,84499.0,84495.0,0.011835]
[1743172175315,0.0003376,84499.0,84496.0,0.248529]
[1743172175530,0.0003376,84499.0,84498.0,0.248525]
[1743172175731,0.0003376,84499.0,84498.0,0.36278264]
[1743172176608,0.2370266,84499.0,84498.0,0.11425764]
[1743172176913,0.0003376,84499.0,84498.0,0.248525]
[1743172177460,0.0013376,84499.0,84498.0,0.36278264]
[1743172178084,0.0023376,84499.0,84498.0,0.36278264]
[1743172178465,0.0023376,84499.0,84498.0,1.91545964]
[1743172178890,0.0023376,84499.0,84498.0,1.44408064]
[1743172179297,0.0003376,84499.0,84498.0,1.53672149]
[1743172179735,0.0003376,84499.0,84498.0,1.33529464]
[1743172179935,0.0003376,84499.0,84498.0,0.66378264]
[1743172180329,0.0003376,84499.0,84498.0,0.36378264]
[1743172180690,0.0003376,84499.0,84498.0,0.36278264]
[1743172181161,0.0003376,84499.0,84498.0,0.36578264]
[1743172181324,0.0003376,84499.0,84498.0,0.36678264]
[1743172181530,0.0003376,84499.0,84498.0,0.36578264]
[1743172181936,0.0003376,84499.0,84498.0,0.37078264]
[1743172182543,0.0003376,84499.0,84498.0,0.36778264]
[1743172183035,0.0003376,84499.0,84498.0,0.37078264]
[1743172183239,0.0003376,84499.0,84498.0,0.36578264]
[1743172183619,0.0003376,84499.0,84498.0,0.36878264]
[1743172183836,0.0003376,84499.0,84498.0,3.95187164]
[1743172184035,0.0003376,84499.0,84498.0,1.35184664]
[1743172184232,0.0003376,84499.0,84498.0,1.22873764]
[1743172185064,0.0003376,84499.0,84498.0,0.66878264]
[1743172185438,0.0003376,84499.0,84498.0,1.61536764]
[1743172185621,0.0003376,84499.0,84498.0,1.20637564]
[1743172185820,0.0003376,84499.0,84498.0,1.17797564]
[1743172187038,0.0003376,84499.0,84498.0,0.87797564]
[1743172187272,0.0003376,84499.0,84498.0,0.35694864]
[1743172187468,0.0003376,84499.0,84498.0,0.254525]
[1743172189209,0.0003376,84499.0,84498.0,0.36878264]
[1743172191528,0.2370266,84499.0,84498.0,0.006]
[1743172191735,0.0003376,84499.0,84498.0,0.254525]
[1743172192749,0.0003376,84499.0,84498.0,0.242691]
[1743172193125,0.0003376,84499.0,84498.0,0.254525]
[1743172193453,0.0003376,84499.0,84498.0,0.251525]
[1743172193799,0.2370266,84499.0,84498.0,0.005]
[1743172193998,0.39058141,84499.0,84498.0,0.005]
[1743172194234,0.69058141,84499.0,84498.0,0.005]
[1743172194619,0.248549,84490.0,84489.0,0.00750101]
[1743172195251,0.81586984,84490.0,84489.0,1e-08]
[1743172195464,0.24859,84476.0,84452.0,0.10567143]
[1743172195671,0.37609,84476.0,84452.0,0.10567143]
[1743172196228,0.248658,84453.0,84452.0,0.10567143]
[1743172196763,0.236818,84453.0,84452.0,0.10567143]
[1743172197328,0.236815,84454.0,84452.0,0.10567143]
[1743172197507,0.236812,84455.0,84452.0,0.23682]
[1743172197666,0.236812,84455.0,84445.0,0.011842]
[1743172197667,0.011838,84467.0,84460.0,0.011839]
[1743172198041,0.236776,84468.0,84463.0,0.011839]
[1743172198278,0.248616,84467.0,84462.0,0.236792]
[1743172198479,0.248616,84467.0,84464.0,0.11425764]
[1743172198818,0.236782,84466.0,84464.0,0.11425764]
[1743172198997,0.011839,84463.0,84457.0,0.236805]
[1743172199196,0.011839,84463.0,84458.0,0.11425764]
[1743172199396,0.248637,84460.0,84458.0,0.11425764]
[1743172199552,0.01184,84459.0,84458.0,0.11425764]
[1743172200418,0.01184,84456.0,84444.0,0.011842]
[1743172200574,0.02324202,84465.0,84463.0,0.011839]
[1743172200770,0.02324202,84465.0,84457.0,0.01184]
[1743172200996,0.236787,84464.0,84459.0,0.01184]
[1743172201263,0.011839,84462.0,84458.0,0.11425764]
[1743172201407,0.236799,84460.0,84458.0,0.11625764]
[1743172201640,0.236798,84461.0,84458.0,0.11625764]
[1743172201641,0.236797,84461.0,84458.0,0.11425764]
[1743172201852,0.248639,84460.0,84458.0,0.11425764]
[1743172202060,0.236797,84461.0,84444.0,0.011842]
[1743172202061,0.011841,84451.0,84444.0,0.011842]
[1743172202226,0.01184,84454.0,84448.0,0.011841]
[1743172202579,0.236815,84454.0,84451.0,0.236822]
[1743172202754,0.236815,84454.0,84451.0,0.236823]
[1743172203094,0.236815,84454.0,84449.0,0.248669]
[1743172203095,0.236815,84454.0,84450.0,0.236826]
[1743172203297,0.236818,84453.0,84451.0,0.236823]
[1743172203454,0.24866,84454.0,84450.0,0.236826]
[1743172203631,0.236819,84453.0,84450.0,0.236826]
[1743172203836,0.236819,84453.0,84445.0,0.236838]
[1743172203837,0.001,84465.0,84460.0,0.011839]
[1743172204049,0.00013329,84476.0,84475.0,0.248593]
[1743172204303,0.00013329,84476.0,84471.0,0.236766]
[1743172204503,0.248602,84473.0,84472.0,0.11425764]
[1743172204709,0.02340918,84476.0,84475.0,0.248593]
[1743172204904,0.02340918,84476.0,84475.0,0.36285064]
[1743172205893,0.011837,84474.0,84468.0,0.236775]
[1743172206103,0.011837,84474.0,84469.0,0.11425764]
[1743172206104,0.248608,84470.0,84469.0,0.11425764]
[1743172206301,0.236768,84471.0,84469.0,0.11425764]
[1743172206500,0.011837,84474.0,84469.0,0.11425764]
[1743172206501,0.236763,84473.0,84469.0,0.35102964]
[1743172206735,0.22797306,84500.0,84475.0,0.236756]
[1743172206937,0.236728,84485.0,84475.0,0.35101364]
[1743172207141,0.34536275,84510.0,84475.0,0.73875064]
[1743172207142,0.00013329,84476.0,84475.0,0.73875064]
[1743172207430,0.00013329,84476.0,84475.0,0.66285064]
[1743172207661,0.00013329,84476.0,84475.0,0.12609464]
[1743172207911,0.00013329,84476.0,84475.0,0.11425764]
[1743172208203,0.00013329,84476.0,84475.0,0.36285064]